[Event "13th Chennai Open 2022"]
[Site "Chennai"]
[Date "2022.06.20"]
[Round "3.1"]
[White "Manigandan, S S"]
[Black "Savchenko, Boris"]
[Result "0-1"]
[ECO "E15"]
[WhiteElo "2122"]
[BlackElo "2524"]
[Annotator "TA"]
[PlyCount "90"]
[EventDate "2022.06.19"]
[EventType "swiss"]
[EventCountry "IND"]
[SourceTitle "playchess.com"]
[Source "ChessBase"]
[SourceQuality "1"]
[TimeControl "5400+30"]

{[%evp 16,90,0,12,35,8,39,37,62,50,62,46,85,96,63,0,78,65,83,77,65,65,60,70,62,44,32,35,37,36,72,34,48,20,25,31,23,0,0,-6,-5,0,-6,-8,0,0,0,0,0,-36,-36,-36,-36,-58,-36,-47,-43,-69,-53,-109,-111,-304,-58,-291,-308,-307,-307,-299,-287,-289,-293,-279,-261,-788,-781,-766,-736]} 1. d4 {[%emt 0:00:04]} Nf6 {[%emt 0:00:29]} 2. c4 {[%emt 0:00:13]} e6 {[%emt 0:00:10]} 3. Nf3 {[%emt 0:00:07]} b6 {[%emt 0:00:12]} 4. g3 {[%emt 0:00:12]} Ba6 {[%emt 0:00:11]} 5. Qa4 {[%emt 0:04:26]} Bb7 {[%emt 0:00:16]} 6. Bg2 {[%emt 0:00:07]} c5 {[%emt 0:00:05]} 7. dxc5 {[%emt 0:01:39]} Bxc5 {[%emt 0:00:24]} 8. O-O {[%emt 0:01:53]} O-O {[%emt 0:02:01]} 9. Nc3 {[%emt 0:03:04]} Qe7 {[%emt 0:03:50] E15: Queen's Indian: 4 g3 sidelines, 4 g3 Ba6 and 4 g3 Bb7 early deviations.} 10. Bf4 {[%emt 0:11:48]} d5 {[%emt 0:00:22]} 11. cxd5 {[%emt 0:01:17] [#]} exd5 $146 {[%emt 0:01:00] White is slightly better.} ({Predecessor:} 11... Nxd5 12. Nxd5 Bxd5 13. Be5 Nd7 14. Bc3 a6 15. Rfd1 b5 16. Qf4 Nf6 17. Bxf6 Qxf6 18. Qxf6 gxf6 {½-½ (33) Borgula,R (2223)-Kolodziejski,P (2048) Sypniewo 2021}) 12. Rfd1 {[%emt 0:14:29]} Nbd7 {[%emt 0:05:55]} 13. Nd4 {[%emt 0:05:21]} a6 {[%emt 0:06:01]} 14. Nf5 {[%emt 0:21:12]} Qe6 {[%emt 0:00:28]} 15. Nd4 {[%emt 0:00:45]} (15. Ne3 $14) 15... Qg4 {[%emt 0:00:46]} (15... Qe7 $1 $11 {remains equal.}) 16. h3 {[%emt 0:04:12]} Qg6 {[%emt 0:00:09]} 17. b4 {[%emt 0:00:19]} b5 {[%emt 0:01:05]} 18. Qb3 {[%emt 0:04:20]} Bxd4 {[%emt 0:02:42]} 19. Rxd4 {[%emt 0:00:12]} Nb6 {[%emt 0:01:25]} 20. a4 {[%emt 0:13:31]} bxa4 {[%emt 0:01:06]} 21. Nxa4 {[%emt 0:00:02]} Nxa4 {[%emt 0:00:27]} 22. Qxa4 {[%emt 0:08:07]} h6 {[%emt 0:00:59]} 23. Rc1 {[%emt 0:01:49]} Rfc8 {[%emt 0:00:25]} 24. Rdd1 {[%emt 0:00:09]} Ne4 {[%emt 0:01:10]} 25. Qd7 {[%emt 0:01:21]} Bc6 {[%emt 0:00:28]} 26. Bxe4 {[%emt 0:00:12]} dxe4 {[%emt 0:00:12]} 27. Qd6 {[%emt 0:00:09]} Qxd6 {[%emt 0:00:45]} 28. Bxd6 {[%emt 0:01:17]} Ba4 {[%emt 0:00:29]} 29. Re1 {[%emt 0:01:20]} Rd8 {[%emt 0:00:15]} 30. Bc5 {[%emt 0:01:15]} Rd2 {[%emt 0:00:09]} 31. g4 {[%emt 0:00:36]} Bb5 {[%emt 0:00:22]} 32. Kf1 {[%emt 0:00:31]} Rad8 {[%emt 0:01:15]} 33. Bb6 {[%emt 0:00:27]} R8d7 {[%emt 0:00:27]} 34. Bc5 {[%emt 0:00:32]} g5 {[%emt 0:00:33]} 35. Bb6 {[%emt 0:00:30]} Rb2 {[%emt 0:01:02]} 36. Bc5 {[%emt 0:00:29]} Kg7 {[%emt 0:01:05] Black is more active.} 37. Rc3 {[%emt 0:00:31] [#]} ({White should try} 37. Kg2 $15) 37... Rxe2 $1 $17 {[%emt 0:00:24]} 38. Rxe2 {[%emt 0:00:30]} (38. Rcc1 $17) 38... Rd1+ $19 {[%emt 0:00:08][%mdl 64] Deflection} 39. Kg2 {[%emt 0:00:10]} Bxe2 {[%emt 0:00:07][%mdl 4096] Endgame KRB-KRB} 40. f3 {[%emt 0:00:50]} Bxf3+ {[%emt 0:02:05]} 41. Kf2 {[%emt 0:00:06]} Rd2+ {[%emt 0:01:27]} 42. Ke1 {[%emt 0:00:50]} Rh2 {[%emt 0:07:35]} 43. Bd4+ {[%emt 0:00:12]} Kf8 {[%emt 1:01:34]} 44. Rc7 $2 {[%emt 0:00:50]} (44. Ra3) 44... e3 {[%emt 0:00:00][%cal Rh2h1] [#]} 45. Bc5+ {[%emt 0:00:31]} Kg8 {[%emt 0:00:00] Weighted Error Value: White=0.29 (precise) /Black=0.11 (very precise)} 0-1

[Event "13th Chennai Open 2022"]
[Site "Chennai"]
[Date "2022.06.20"]
[Round "3.2"]
[White "Fedorov, Alexei"]
[Black "Vignesh B"]
[Result "1/2-1/2"]
[ECO "C54"]
[WhiteElo "2529"]
[BlackElo "2072"]
[Annotator "TA"]
[PlyCount "59"]
[EventDate "2022.06.19"]
[EventType "swiss"]
[EventCountry "IND"]
[SourceTitle "playchess.com"]
[Source "ChessBase"]
[SourceQuality "1"]
[TimeControl "5400+30"]

{[%evp 11,59,6,16,0,3,0,0,0,0,0,0,0,12,0,0,-3,-8,-10,27,25,0,-19,-4,-2,0,-6,-4,-1,-12,-12,-12,-6,-6,-16,0,0,0,0,0,0,0,0,0,0,0,0,0,0,0,-6]} 1. e4 {[%emt 0:00:03]} e5 {[%emt 0:04:15]} 2. Nf3 {[%emt 0:00:43]} Nc6 {[%emt 0:00:09]} 3. Bc4 {[%emt 0:00:15]} Bc5 {[%emt 0:00:30]} 4. c3 {[%emt 0:00:34]} Nf6 {[%emt 1:27:36]} 5. d3 {[%emt 0:00:06]} d6 {[%emt 0:00:00]} 6. Nbd2 {[%emt 0:03:09]} O-O {[%emt 0:00:00] 6...a5 is a critical line.} 7. h3 {[%emt 0:01:45] C54: Giuoco Piano: 4 c3 Nf6, main lines with 5 d4 and 5 d3.} a5 {[%emt 0:00:00]} 8. Nf1 {[%emt 0:01:13]} Be6 {[%emt 0:02:00]} 9. Bxe6 {[%emt 0:04:24]} fxe6 {[%emt 0:00:00]} 10. Ng3 {[%emt 0:00:06]} a4 {[%emt 0:01:00]} 11. O-O {[%emt 1:23:42] [#]} Bb6 $146 {[%emt 0:00:30]} ({Predecessor:} 11... Ba7 12. d4 exd4 13. cxd4 Qe8 14. Be3 d5 15. e5 Nh5 16. Ne2 Rxf3 17. gxf3 {1-0 (17) Oratovsky,M (2467)-Mikhalevski,V (2565) Ramat Gan 2018}) 12. d4 {[%emt 0:00:30]} Qe8 {[%emt 0:00:00]} 13. Be3 {[%emt 0:00:30]} exd4 {[%emt 0:01:00]} 14. cxd4 {[%emt 0:00:30]} Nh5 {[%emt 0:00:00]} 15. Nxh5 {[%emt 0:00:00]} Qxh5 {[%emt 0:00:00]} 16. a3 {[%emt 0:01:00] The position is equal.} Qg6 {[%emt 0:00:00]} 17. d5 {[%emt 0:00:00] [#] And now Bxb6 would win.} Bxe3 {[%emt 0:00:00]} 18. fxe3 {[%emt 0:00:00]} Ne7 {[%emt 0:02:30][%cal Bc6e7,Be7f5,Bf5g3][%mdl 32]} 19. Qd4 {[%emt 0:00:00]} exd5 {[%emt 0:00:00]} 20. exd5 {[%emt 0:00:00]} Nf5 {[%emt 0:00:00]} 21. Qd3 {[%emt 0:00:00]} Rae8 {[%emt 0:00:00]} 22. Rae1 {[%emt 0:00:00]} Ng3 {[%emt 0:00:00]} 23. Qxg6 {[%emt 0:00:00]} hxg6 {[%emt 0:00:00]} 24. Rf2 {[%emt 0:00:00]} Ne4 {[%emt 0:00:00]} 25. Rc2 {[%emt 0:00:00]} Rf7 {[%emt 0:00:00]} 26. Rc4 {[%emt 0:00:00]} Rxf3 {[%emt 0:00:00]} 27. Rxe4 {[%emt 0:00:00]} Rxe4 {[%emt 0:00:00]} 28. gxf3 {[%emt 0:00:00]} Rc4 {[%emt 0:00:00] Strongly threatening ...Rc2.} 29. Re2 {[%emt 0:00:00] Prevents Rc2.} Kf7 {[%emt 0:00:00]} 30. Kf2 {[%emt 0:00:00] An even fight not without its subleties.  Weighted Error Value: White=0.03 (flawless) /Black=0.04 (flawless)} 1/2-1/2

[Event "13th Chennai Open 2022"]
[Site "Chennai"]
[Date "2022.06.20"]
[Round "3.3"]
[White "Aronyak Ghosh"]
[Black "Nguyen, Thanh Thuy Tien"]
[Result "0-1"]
[ECO "A13"]
[WhiteElo "2494"]
[BlackElo "1996"]
[Annotator "TA"]
[PlyCount "84"]
[EventDate "2022.06.19"]
[EventType "swiss"]
[EventCountry "IND"]
[SourceTitle "playchess.com"]
[Source "ChessBase"]
[SourceQuality "1"]
[TimeControl "5400+30"]

{[%evp 14,84,10,4,30,0,0,0,0,-16,0,-31,0,0,0,-38,-31,-29,-14,-23,35,35,35,33,37,22,22,24,33,33,37,0,0,0,0,0,0,0,0,0,511,-220,-168,-666,-663,-656,-651,-635,-543,-985,-968,-1252,-1243,-1150,0,-952,-867,-840,-793,-2110,-2018,-5306,-3243,-29975,-29975,-29976,-29977,-29976,-29977,-29975,-29973,-29988,-29989]} 1. Nf3 {[%emt 0:00:48]} Nf6 {[%emt 0:00:58]} 2. c4 {[%emt 0:01:12]} e6 {[%emt 0:00:23]} 3. g3 {[%emt 0:00:54]} d5 {[%emt 0:00:14]} 4. Bg2 {[%emt 0:00:07]} d4 {[%emt 0:02:43]} 5. O-O {[%emt 0:01:13]} c5 {[%emt 0:01:23]} 6. e3 {[%emt 0:00:36]} Nc6 {[%emt 0:00:26]} 7. exd4 {[%emt 0:01:53]} cxd4 {[%emt 0:00:12]} 8. d3 {[%emt 0:00:18]} h6 {[%emt 0:02:28] A13: English Opening: 1...e6.} 9. Re1 {[%emt 0:00:26]} (9. Bf4 $142) 9... Bd6 $11 {[%emt 0:00:29]} 10. b3 {[%emt 0:01:58]} O-O {[%emt 0:06:41] The position is equal.} 11. Ba3 {[%emt 0:00:18]} Re8 {[%emt 0:00:59]} 12. c5 {[%emt 0:05:00]} Bf8 {[%emt 0:03:03] [#]} 13. Nbd2 $146 {[%emt 0:03:00]} ({Predecessor:} 13. b4 a5 14. Qa4 Nxb4 15. Bxb4 Bd7 16. Qc2 axb4 17. Nxd4 Ba4 18. Qc4 Ra5 19. Nd2 Rxc5 20. Qxb4 {1-0 (41) Nikitenko,M (2452)-Todorovic,G (2425) Novi Sad 2021}) 13... Nd5 {[%emt 0:03:40]} 14. Ne5 {[%emt 0:03:57]} Nxe5 {[%emt 0:09:06]} 15. Rxe5 {[%emt 0:00:07][%cal Be1e5,Be5d5,Bd5d8][%mdl 32]} Qc7 {[%emt 0:00:54]} 16. Nc4 {[%emt 0:02:27]} f6 {[%emt 0:04:44]} (16... Nc3 $11 17. Qh5 Rd8) 17. Qh5 $14 {[%emt 0:09:41]} Rd8 {[%emt 0:12:37] [#]} 18. Bxd5 $1 {[%emt 0:11:23]} exd5 {[%emt 0:08:59]} (18... fxe5 19. Be4 g5 20. Nd6 $16 (20. Qg6+ Qg7 $14)) 19. Rxd5 {[%emt 0:00:05]} Bg4 {[%emt 0:00:22] [#]} 20. Rxd8 $1 {[%emt 0:01:09]} Bxh5 {[%emt 0:00:07]} 21. Rxa8 {[%emt 0:00:03] And now c6 would win.} Kf7 $1 {[%emt 0:01:14]} 22. Re1 {[%emt 0:14:53] Black must now prevent Ree8.} (22. Rxa7 $5 {[%cal Rc4d6]} Bf3 23. Nd2 $14) 22... Bxc5 {[%emt 0:03:07]} 23. Bxc5 {[%emt 0:01:19]} Qxc5 {[%emt 0:00:07] Dancing on a razor blade.} 24. Rc8 {[%emt 0:00:18]} Qb4 {[%emt 0:09:06]} 25. Rc7+ $1 {[%emt 0:00:18]} Kg6 {[%emt 0:00:27]} 26. Ree7 {[%emt 0:05:22]} Bf3 {[%emt 0:01:28][%mdl 8192]} (26... b5 $1 $11 27. a3 (27. Rxg7+ Kf5 $11) 27... Qxb3 28. Rxg7+ Kf5 29. Rc5+ Ke6 30. Rc6+ Kf5 31. Nd6+ Ke5) 27. Kf1 $4 {[%emt 0:07:11][%mdl 8192]} (27. Rxg7+ $18 {was the only winning move.} Kh5 {[#]} 28. Nd2 $1 {[%mdl 512]}) 27... b5 $40 {[%emt 0:03:13][%mdl 128] Black goes for the king.} 28. Ne5+ {[%emt 0:02:14]} (28. Rxg7+ Kf5 29. Rcd7 (29. g4+ $2 Bxg4 30. Rb7 a6 $19) 29... bxc4 30. Rxd4) 28... fxe5 {[%emt 0:00:37]} 29. Rxg7+ {[%emt 0:00:04]} Kh5 {[%emt 0:04:24]} 30. Rcf7 {[%emt 0:00:06][%cal Rf7f5]} Bg4 {[%emt 0:00:23] Prevents Rf5+.} 31. Kg2 {[%emt 0:00:07]} Qe1 {[%emt 0:00:31][%cal Og4h3] ...Bh3+! is the strong threat.} 32. Rf6 {[%emt 0:02:41] [#]} Bh3+ $1 {[%emt 0:03:31][%mdl 512]} 33. Kf3 {[%emt 0:00:05]} Bg4+ {[%emt 0:04:43]} 34. Kg2 {[%emt 0:00:13]} e4 {[%emt 0:03:06][%cal Og4h3] ( -> ...Bh3+!)} 35. Rxg4 {[%emt 0:06:07]} Kxg4 {[%emt 0:00:09]} 36. dxe4 {[%emt 0:00:04][%mdl 4096] Endgame KQ-KR} Kg5 {[%emt 0:00:55]} 37. e5 {[%emt 0:00:20]} Qe4+ {[%emt 0:01:30]} 38. Kh3 {[%emt 0:00:25]} Qxe5 {[%emt 0:01:03] Black mates.} 39. f4+ {[%emt 0:00:05]} Kxf6 {[%emt 0:00:09]} 40. fxe5+ {[%emt 0:00:04]} Kxe5 {[%emt 0:00:07]} 41. Kg2 {[%emt 0:00:01]} Ke4 {[%emt 0:00:55]} 42. h4 {[%emt 0:01:14]} Ke3 {[%emt 0:00:16] Weighted Error Value: White=1.07/Black=0.44} 0-1

[Event "13th Chennai Open 2022"]
[Site "Chennai"]
[Date "2022.06.20"]
[Round "3.4"]
[White "Prasannaa.s"]
[Black "Deepan Chakkravarthy J."]
[Result "1/2-1/2"]
[ECO "B22"]
[WhiteElo "2164"]
[BlackElo "2478"]
[Annotator "TA"]
[PlyCount "108"]
[EventDate "2022.06.19"]
[EventType "swiss"]
[EventCountry "IND"]
[SourceTitle "playchess.com"]
[Source "ChessBase"]
[SourceQuality "1"]
[TimeControl "5400+30"]

{[%evp 17,108,32,21,0,0,-8,0,0,0,6,5,-7,-4,-10,-21,-15,-16,-49,-35,-74,-54,-86,-63,-61,-41,-44,-42,-57,-36,-52,-18,-32,-18,-58,-41,-37,-34,-27,-16,-43,-31,-29,-28,-35,-31,-26,-25,-36,-47,-60,-62,-71,-68,-83,-27,-36,-31,-33,-33,-53,-53,-61,-60,-102,-60,-127,-54,-54,-54,-137,-54,-54,0,0,0,0,0,-8,0,0,0,0,0,0,0,0,0,0,0,0,0,0,0]} 1. e4 {[%emt 0:00:04]} c5 {[%emt 0:00:49]} 2. c3 {[%emt 0:00:08]} Nf6 {[%emt 0:01:17]} 3. e5 {[%emt 0:00:07]} Nd5 {[%emt 0:00:03]} 4. d4 {[%emt 0:00:04]} cxd4 {[%emt 0:00:06]} 5. Nf3 {[%emt 0:00:02]} Nc6 {[%emt 0:00:47]} 6. cxd4 {[%emt 0:00:06]} d6 {[%emt 0:00:07]} 7. Bc4 {[%emt 0:00:05]} Nb6 {[%emt 0:01:29]} 8. Bb5 {[%emt 0:00:07]} e6 {[%emt 0:00:14]} 9. O-O {[%emt 0:02:45]} Bd7 {[%emt 0:00:16][%cal Oc6e5] 9...Be7 is not played anymore.} 10. exd6 {[%emt 0:03:46] B22: Sicilian: 2 c3.} Bxd6 {[%emt 0:00:10]} 11. Nc3 {[%emt 0:00:03]} O-O $1 {[%emt 0:02:52] The main line 11...0-0 scores better than 11...Nb4.} 12. Re1 {[%emt 0:04:16]} Ne7 {[%emt 0:15:30][%cal Bc6e7,Be7f5,Bf5e3][%mdl 32]} 13. Bd3 {[%emt 0:00:48][%cal Od3h7]} Nbd5 {[%emt 0:08:47] [#]} 14. Ne5 $146 {[%emt 0:26:10]} ({Predecessor:} 14. Qe2 Bc6 15. Ne5 Bxe5 16. dxe5 Nxc3 17. bxc3 Qd5 18. f3 Rfd8 19. Bg5 Qxd3 20. Bxe7 Qxe2 21. Rxe2 Rd3 22. Rc1 {1-0 (57) Abdrlauf,E (2373)-Vitiugov,N (2722) Chess.com INT 2020}) 14... Bxe5 {[%emt 0:13:45]} 15. Rxe5 {[%emt 0:01:01]} Bc6 {[%emt 0:00:07]} 16. Rh5 {[%emt 0:05:47]} g6 {[%emt 0:01:58]} 17. Rh3 {[%emt 0:01:45]} Nf5 {[%emt 0:00:58]} 18. Ne4 {[%emt 0:03:50]} Nb4 {[%emt 0:05:58] Pair of Knights!} (18... Nxd4 $5 {[%cal Re6e5]} 19. Bh6 e5 $1 $15) 19. Be3 {[%emt 0:11:31]} Nxe3 {[%emt 0:12:13]} 20. fxe3 {[%emt 0:00:11]} Kg7 {[%emt 0:11:56][%cal Oe6e5]} 21. Bb1 {[%emt 0:06:48]} Nd5 {[%emt 0:06:02]} 22. Qd2 {[%emt 0:01:09]} h5 {[%emt 0:02:47][%cal Oe6e5]} (22... e5 {seems wilder.} 23. Bc2 f5 24. Nc5 Re8) 23. Bd3 {[%emt 0:00:51]} Ne7 {[%emt 0:00:40]} 24. Nc3 {[%emt 0:05:17]} Qd6 {[%emt 0:01:52]} 25. Rf1 {[%emt 0:01:01]} Rad8 {[%emt 0:00:44]} 26. Qf2 {[%emt 0:00:59] Qf6+ is the strong threat.} e5 {[%emt 0:01:20]} 27. Ne2 {[%emt 0:04:25]} f5 {[%emt 0:06:10][%cal Bf7f5,Bf5f4][%mdl 32]} 28. Qh4 {[%emt 0:05:33]} Qf6 {[%emt 0:02:21] Inhibits Qg5. Strongly threatening ...Qxh4.} 29. Qg3 {[%emt 0:00:20]} f4 {[%emt 0:00:17]} 30. dxe5 $1 {[%emt 0:06:12]} fxg3 {[%emt 0:00:40][%csl Gf8][%cal Rf6f1][%mdl 64] Discovered Attack} 31. exf6+ {[%emt 0:00:04]} Rxf6 {[%emt 0:00:08]} 32. Nd4 {[%emt 0:02:40]} gxh2+ {[%emt 0:01:11]} 33. Kxh2 {[%emt 0:00:06]} Rxf1 {[%emt 0:00:38]} 34. Bxf1 {[%emt 0:00:19] aiming for Ne6+.} Bd7 {[%emt 0:01:52] Against Ne6+} 35. Rh4 {[%emt 0:00:50]} Nc6 {[%emt 0:01:18]} (35... Nd5 $17 36. Re4 Nf6 37. Ne6+ (37. Re7+ $2 Kf8 $19) 37... Bxe6 38. Rxe6 Ng4+ 39. Kg3 Rd2) 36. Re4 {[%emt 0:00:56]} Re8 {[%emt 0:00:15]} 37. Rxe8 {[%emt 0:03:39]} Bxe8 {[%emt 0:00:01]} 38. Nxc6 {[%emt 0:00:37]} Bxc6 $15 {[%emt 0:00:03][%mdl 4096] Endgame KB-KB} 39. Be2 {[%emt 0:00:13]} Kf6 {[%emt 0:00:32]} 40. Bf3 {[%emt 0:01:40]} Kf5 {[%emt 0:01:39]} 41. Kg3 {[%emt 0:00:08] [#]} ({White should play} 41. Bd1 $15) 41... Be4 {[%emt 0:00:31]} (41... Bxf3 $1 $17 42. gxf3 g5) 42. Kh4 {[%emt 0:01:48]} b6 $1 {[%emt 0:00:15]} 43. b4 {[%emt 0:01:10] [#]} (43. b3 $15) 43... Bd3 {[%emt 0:00:25]} (43... Bxf3 $1 $17 44. gxf3 b5) 44. a3 {[%emt 0:01:16]} a5 {[%emt 0:00:09]} ({Black should try} 44... Bb5 $15) 45. bxa5 $11 {[%emt 0:00:03] The position is equal.} bxa5 {[%emt 0:00:02]} 46. Bc6 {[%emt 0:01:14]} Be2 {[%emt 0:00:10]} 47. Bf3 {[%emt 0:00:07]} Bxf3 {[%emt 0:01:26]} 48. gxf3 {[%emt 0:00:04] K3P-K3P} a4 {[%emt 0:00:02]} 49. Kh3 {[%emt 0:02:15]} g5 {[%emt 0:00:07]} 50. Kg3 {[%emt 0:00:02]} Ke5 {[%emt 0:01:26]} 51. f4+ {[%emt 0:00:10]} gxf4+ {[%emt 0:00:49]} 52. exf4+ {[%emt 0:00:04]} Kf5 {[%emt 0:00:27]} (52... Ke4 $5) 53. Kh4 {[%emt 0:00:04]} Kxf4 {[%emt 0:00:03] ( -> ...Ke5)} 54. Kxh5 {[%emt 0:00:05]} Ke5 {[%emt 0:01:46] Weighted Error Value: White=0.12 (very precise) /Black=0.12 (very precise)} 1/2-1/2

[Event "13th Chennai Open 2022"]
[Site "Chennai"]
[Date "2022.06.20"]
[Round "3.5"]
[White "Stupak, Kirill"]
[Black "Daakshin Arun"]
[Result "1-0"]
[ECO "B07"]
[WhiteElo "2440"]
[BlackElo "2016"]
[Annotator "TA"]
[PlyCount "85"]
[EventDate "2022.06.19"]
[EventType "swiss"]
[EventCountry "IND"]
[SourceTitle "playchess.com"]
[Source "ChessBase"]
[SourceQuality "1"]
[TimeControl "5400+30"]

{[%evp 16,85,40,11,11,-3,97,88,114,85,80,85,90,88,85,94,95,64,79,17,17,14,24,10,16,20,84,88,81,24,31,22,39,33,32,29,112,116,121,121,275,264,268,268,262,228,236,161,262,258,328,318,316,314,649,589,636,622,606,587,585,552,900,833,845,764,861,589,940,833,29993,29994]} 1. d4 {[%emt 0:00:01]} Nf6 {[%emt 0:00:12]} 2. g3 {[%emt 0:00:01]} g6 {[%emt 0:00:34]} 3. Bg2 {[%emt 0:00:02]} Bg7 {[%emt 0:00:38]} 4. e4 {[%emt 0:00:02]} d6 {[%emt 0:00:08]} 5. Nc3 {[%emt 0:00:02]} O-O {[%emt 0:00:22]} 6. Nge2 {[%emt 0:00:02]} c5 {[%emt 0:00:28]} 7. dxc5 {[%emt 0:00:04]} dxc5 {[%emt 0:00:47]} 8. Qxd8 {[%emt 0:00:03]} Rxd8 {[%emt 0:00:06]} 9. Be3 {[%emt 0:00:02]} Na6 {[%emt 0:02:54] B07: Pirc Defence: Miscellaneous Systems.} 10. h3 {[%emt 0:00:01] Prevents Ng4.} Nd7 {[%emt 0:04:11]} (10... Ne8 $11) 11. O-O-O $1 $16 {[%emt 0:00:21] [#]} Re8 $146 {[%emt 0:02:12] White is better.} ({Predecessor:} 11... b6 12. e5 Rb8 13. f4 Bb7 14. Bxb7 Rxb7 15. Rd2 Re8 16. Rhd1 Nab8 17. Ne4 Bh6 {1-0 (34) Pel,B (2247)-Van Foreest,M (1989) Groningen 2017}) 12. Nb5 {[%emt 0:05:12]} Nb6 {[%emt 0:03:13]} 13. b3 {[%emt 0:03:02] Against Nc4} Bd7 {[%emt 0:06:38]} 14. c4 {[%emt 0:00:13]} Bxb5 {[%emt 0:06:00]} 15. cxb5 {[%emt 0:00:05]} Nc7 {[%emt 0:00:25]} 16. a4 $1 {[%emt 0:05:07]} (16. Bxc5 $6 Rac8 17. Kb1 Nxb5 $11) 16... c4 {[%emt 0:03:29]} 17. e5 {[%emt 0:03:17]} (17. a5 cxb3 18. axb6 axb6 $14) (17. Kc2 $1 $16) 17... cxb3 $11 {[%emt 0:01:21]} 18. Bxb7 {[%emt 0:00:11]} Rab8 {[%emt 0:04:07]} 19. Bc6 {[%emt 0:01:26] Hoping for Bxb6. A strong pair of Bishops.} Rec8 {[%emt 0:01:15]} 20. Bxb6 {[%emt 0:02:30]} Rxb6 {[%emt 0:03:15]} (20... axb6 $11 {keeps the balance.} 21. f4 Ne6) 21. f4 $16 {[%emt 0:00:17]} f6 {[%emt 0:04:18]} 22. Bd7 {[%emt 0:00:27] White is more active.} ({White should play} 22. Kb1 $16) 22... Rf8 $11 {[%emt 0:02:30]} 23. e6 {[%emt 0:01:41][%cal Of4f5] f5! is the strong threat.} f5 {[%emt 0:00:41]} (23... Nxe6 $2 24. a5 Rxb5 25. Bxb5 $18) 24. Nd4 {[%emt 0:04:52][%cal Be2d4,Bd4c6,Bc6e7][%mdl 32]} b2+ {[%emt 0:04:07]} 25. Kb1 {[%emt 0:01:03][%cal Bc1b1,Bb1c2,Bc2b2][%mdl 32] Threatening Nc6.} (25. Kxb2 Rd6 26. Kc3 Nd5+ 27. Kb3 Ne3 $15) 25... Nd5 {[%emt 0:01:20] [#]} (25... Rd6 $2 26. Nc6 Rxd1+ 27. Rxd1 $18) (25... Bf6 $1 $11) 26. Nc6 $1 $36 {[%emt 0:10:18][%mdl 2048] White is on the roll.} ({Reject} 26. Kxb2 $6 Ne3 $11) 26... Nc3+ {[%emt 0:00:06]} 27. Kc2 {[%emt 0:00:01]} Nxd1 $2 {[%emt 0:06:09] This costs Black the game.} (27... Bf6 $16 {keeps fighting.}) 28. Nxe7+ $18 {[%emt 0:00:04]} Kh8 {[%emt 0:00:04]} 29. Rxd1 {[%emt 0:00:06] Black must now prevent Nc6.} Bf6 {[%emt 0:01:55]} 30. Nc6 {[%emt 0:07:49]} Rb7 {[%emt 0:00:37]} 31. Ne5 {[%emt 0:01:14]} ({Worse is} 31. e7 {[#]} Bxe7 $1 32. Kxb2 (32. Nxe7 Rf7 $16) 32... Bc5 $15) 31... Kg7 {[%emt 0:06:09]} (31... a6 {was worth a try.}) 32. Kxb2 {[%emt 0:01:36]} Rd8 {[%emt 0:00:20]} 33. Kb3 {[%emt 0:00:47]} Bxe5 {[%emt 0:00:42]} 34. e7 {[%emt 0:00:40]} ({Not} 34. fxe5 Kf8 $16) 34... Rdb8 {[%emt 0:03:12]} (34... Re8) 35. fxe5 {[%emt 0:01:05][%mdl 4096] Endgame KRR-KRB} Kf7 {[%emt 0:00:15]} 36. e8=Q+ {[%emt 0:00:11]} Rxe8 {[%emt 0:00:05]} 37. Bxe8+ {[%emt 0:00:08]} Kxe8 {[%emt 0:00:04] KR-KR} 38. Kb4 {[%emt 0:00:07]} Ke7 {[%emt 0:01:15]} 39. Rd6 {[%emt 0:00:12]} Rc7 {[%emt 0:02:30]} 40. a5 {[%emt 0:00:12]} Rc1 {[%emt 0:00:06]} 41. b6 {[%emt 0:00:42]} a6 {[%emt 0:01:20]} 42. Rd3 {[%emt 0:00:31] White threatens b7 and mate.} Rc5 {[%emt 0:00:43]} 43. Kxc5 {[%emt 0:00:07] Weighted Error Value: White=0.18 (very precise) /Black=0.61} 1-0